[Event "*** Titled Tuesday Blitz"]
[Site "Chess.com"]
[Date "2021.03.09"]
[Round "9"]
[White "WiktoriaPOL"]
[Black "Fortitudine"]
[Result "1/2-1/2"]
[WhiteElo "2083"]
[BlackElo "2299"]
[TimeControl "180+1"]
[EndTime "11:49:24 PST"]
[Termination "Game drawn by repetition"]

1. e4 {[%clk 0:03:00.9]} 1... c5 {[%clk 0:02:57.3]} 2. d4 {[%clk 0:03:00.1]}
2... cxd4 {[%clk 0:02:57.4]} 3. c3 {[%clk 0:02:59.8]} 3... d3 {[%clk 0:02:57.8]}
4. Bxd3 {[%clk 0:02:58.9]} 4... Nc6 {[%clk 0:02:58.3]} 5. Nf3 {[%clk 0:02:58.8]}
5... d6 {[%clk 0:02:55.4]} 6. c4 {[%clk 0:02:59]} 6... g6 {[%clk 0:02:54.9]} 7.
Nc3 {[%clk 0:02:59]} 7... Be6 {[%clk 0:02:38.5]} 8. O-O {[%clk 0:02:58]} 8...
Bh6 {[%clk 0:02:32.6]} 9. Bxh6 {[%clk 0:02:56.4]} 9... Nxh6 {[%clk 0:02:33.5]}
10. Qd2 {[%clk 0:02:55.5]} 10... Ng4 {[%clk 0:02:32]} 11. Nd5 {[%clk 0:02:53.3]}
11... O-O {[%clk 0:02:22.6]} 12. h3 {[%clk 0:02:50.9]} 12... Nge5 {[%clk
0:02:22.3]} 13. Nxe5 {[%clk 0:02:44.9]} 13... Nxe5 {[%clk 0:02:10.6]} 14. f4
{[%clk 0:02:44.5]} 14... Nxd3 {[%clk 0:02:02.2]} 15. Qxd3 {[%clk 0:02:44.4]}
15... Bxd5 {[%clk 0:02:02.5]} 16. exd5 {[%clk 0:02:38.4]} 16... Qb6+ {[%clk
0:01:47.7]} 17. Kh1 {[%clk 0:02:37.9]} 17... Rac8 {[%clk 0:01:44.7]} 18. b3
{[%clk 0:02:37.2]} 18... Qc5 {[%clk 0:01:14.8]} 19. Rae1 {[%clk 0:02:35.5]}
19... Rc7 {[%clk 0:01:13.9]} 20. f5 {[%clk 0:02:33.8]} 20... b5 {[%clk
0:01:12.6]} 21. fxg6 {[%clk 0:02:31.9]} 21... hxg6 {[%clk 0:01:12.8]} 22. cxb5
{[%clk 0:01:21.7]} 22... Rb7 {[%clk 0:00:52.2]} 23. a4 {[%clk 0:01:13.3]} 23...
Rc7 {[%clk 0:00:49.6]} 24. Kh2 {[%clk 0:00:45.7]} 24... Kg7 {[%clk 0:00:49.2]}
25. Re3 {[%clk 0:00:42.5]} 25... f6 {[%clk 0:00:48.5]} 26. Rg3 {[%clk
0:00:39.4]} 26... g5 {[%clk 0:00:46.8]} 27. Qf5 {[%clk 0:00:36.1]} 27... Qc2
{[%clk 0:00:22.8]} 28. Rxg5+ {[%clk 0:00:33.4]} 28... Kf7 {[%clk 0:00:20.4]} 29.
Qe6+ {[%clk 0:00:28.5]} 29... Ke8 {[%clk 0:00:20.2]} 30. Rg3 {[%clk 0:00:22.7]}
30... Qb2 {[%clk 0:00:17.3]} 31. Re3 {[%clk 0:00:21.7]} 31... Kd8 {[%clk
0:00:15.2]} 32. Qe4 {[%clk 0:00:16.1]} 32... Qe5+ {[%clk 0:00:12.9]} 33. Qxe5
{[%clk 0:00:15.5]} 33... dxe5 {[%clk 0:00:13.8]} 34. Rxe5 {[%clk 0:00:14.7]}
34... Kd7 {[%clk 0:00:13.7]} 35. Rh5 {[%clk 0:00:11.8]} 35... Rc2 {[%clk
0:00:13.7]} 36. Rf3 {[%clk 0:00:11.3]} 36... Rg8 {[%clk 0:00:14]} 37. Rg3 {[%clk
0:00:11.6]} 37... Rgc8 {[%clk 0:00:13.4]} 38. Rh7 {[%clk 0:00:09.1]} 38... Kd6
{[%clk 0:00:13.8]} 39. Re3 {[%clk 0:00:07.9]} 39... R8c7 {[%clk 0:00:14.3]} 40.
Re6+ {[%clk 0:00:05.9]} 40... Kxd5 {[%clk 0:00:14.6]} 41. Rexe7 {[%clk
0:00:05.9]} 41... Rc8 {[%clk 0:00:11.4]} 42. Rd7+ {[%clk 0:00:05.1]} 42... Ke6
{[%clk 0:00:10.8]} 43. Rhe7+ {[%clk 0:00:04.5]} 43... Kf5 {[%clk 0:00:11.3]} 44.
Rxa7 {[%clk 0:00:04.6]} 44... Rb2 {[%clk 0:00:11.1]} 45. b6 {[%clk 0:00:03.1]}
45... Rcc2 {[%clk 0:00:11]} 46. Rg7 {[%clk 0:00:03.2]} 46... Rxb3 {[%clk
0:00:11.4]} 47. b7 {[%clk 0:00:03]} 47... Rcb2 {[%clk 0:00:11.9]} 48. Ra5+
{[%clk 0:00:01.2]} 48... Ke6 {[%clk 0:00:11.4]} 49. Rb5 {[%clk 0:00:02.1]} 49...
Rxb5 {[%clk 0:00:11]} 50. axb5 {[%clk 0:00:03]} 50... Rxb5 {[%clk 0:00:11.7]}
51. h4 {[%clk 0:00:03.1]} 51... f5 {[%clk 0:00:11.2]} 52. Kh3 {[%clk 0:00:03.5]}
52... Kf6 {[%clk 0:00:11.6]} 53. Rh7 {[%clk 0:00:03.7]} 53... Rb3+ {[%clk
0:00:11.3]} 54. g3 {[%clk 0:00:04.1]} 54... Kg6 {[%clk 0:00:11.2]} 55. Re7
{[%clk 0:00:03.8]} 55... f4 {[%clk 0:00:11.4]} 56. Kg4 {[%clk 0:00:03.3]} 56...
fxg3 {[%clk 0:00:10.7]} 57. h5+ {[%clk 0:00:03.6]} 57... Kf6 {[%clk 0:00:11.1]}
58. Re3 {[%clk 0:00:03.3]} 58... Rxb7 {[%clk 0:00:09.8]} 59. Rxg3 {[%clk
0:00:03.1]} 59... Kg7 {[%clk 0:00:10]} 60. Kg5 {[%clk 0:00:03.1]} 60... Rb5+
{[%clk 0:00:10.2]} 61. Kh4+ {[%clk 0:00:03.3]} 61... Kh6 {[%clk 0:00:10.8]} 62.
Rg6+ {[%clk 0:00:03.4]} 62... Kh7 {[%clk 0:00:11.2]} 63. Rc6 {[%clk 0:00:03.4]}
63... Rb4+ {[%clk 0:00:10.3]} 64. Kg5 {[%clk 0:00:03.2]} 64... Rb5+ {[%clk
0:00:10.8]} 65. Kg4 {[%clk 0:00:03]} 65... Rb4+ {[%clk 0:00:11.2]} 66. Kg5
{[%clk 0:00:03.2]} 66... Rb5+ {[%clk 0:00:11.7]} 67. Kg4 {[%clk 0:00:03.2]}
67... Rb4+ {[%clk 0:00:09.7]} 68. Kg5 {[%clk 0:00:03.6]} 1/2-1/2

[Event "*** Titled Tuesday Blitz"]
[Site "Chess.com"]
[Date "2021.03.09"]
[Round "9"]
[White "erdni1993"]
[Black "PavelShkapenko"]
[Result "0-1"]
[WhiteElo "2533"]
[BlackElo "2717"]
[TimeControl "180+1"]
[EndTime "11:49:28 PST"]
[Termination "PavelShkapenko won by resignation"]

1. e4 {[%clk 0:03:00.9]} 1... e5 {[%clk 0:02:56.4]} 2. Nf3 {[%clk 0:03:00.9]}
2... Nc6 {[%clk 0:02:55.5]} 3. Bb5 {[%clk 0:03:01]} 3... Bc5 {[%clk 0:02:55.2]}
4. O-O {[%clk 0:02:58.2]} 4... d6 {[%clk 0:02:55.1]} 5. h3 {[%clk 0:02:54.7]}
5... Ne7 {[%clk 0:02:53]} 6. c3 {[%clk 0:02:54]} 6... Bd7 {[%clk 0:02:46.6]} 7.
Re1 {[%clk 0:02:41.9]} 7... O-O {[%clk 0:02:46.1]} 8. d4 {[%clk 0:02:28.3]} 8...
Bb6 {[%clk 0:02:41.7]} 9. dxe5 {[%clk 0:02:21.9]} 9... Nxe5 {[%clk 0:02:35]} 10.
Bxd7 {[%clk 0:02:13.9]} 10... Nxf3+ {[%clk 0:02:34.9]} 11. Qxf3 {[%clk
0:02:13.2]} 11... Qxd7 {[%clk 0:02:35.8]} 12. Be3 {[%clk 0:02:10.7]} 12... Bxe3
{[%clk 0:02:28.9]} 13. Rxe3 {[%clk 0:02:10.4]} 13... Ng6 {[%clk 0:02:24.8]} 14.
Nd2 {[%clk 0:02:08]} 14... a5 {[%clk 0:02:09.6]} 15. Rae1 {[%clk 0:02:03.5]}
15... a4 {[%clk 0:02:09.4]} 16. c4 {[%clk 0:01:51]} 16... Qc6 {[%clk 0:01:57.8]}
17. Qe2 {[%clk 0:01:42.2]} 17... Nf4 {[%clk 0:01:54]} 18. Qg4 {[%clk 0:01:41]}
18... Ng6 {[%clk 0:01:50]} 19. Qe2 {[%clk 0:01:32.9]} 19... f5 {[%clk
0:01:34.6]} 20. exf5 {[%clk 0:01:31.2]} 20... Rxf5 {[%clk 0:01:33.5]} 21. Nf3
{[%clk 0:01:22.4]} 21... Nf4 {[%clk 0:01:15.8]} 22. Re8+ {[%clk 0:01:08.5]}
22... Rf8 {[%clk 0:01:07.9]} 23. Rxf8+ {[%clk 0:00:52.4]} 23... Rxf8 {[%clk
0:01:08.8]} 24. Qe4 {[%clk 0:00:52.7]} 24... Qxe4 {[%clk 0:00:32.2]} 25. Rxe4
{[%clk 0:00:53.6]} 25... Nxh3+ {[%clk 0:00:32.1]} 26. Kf1 {[%clk 0:00:50]} 26...
Nf4 {[%clk 0:00:31.4]} 27. Re7 {[%clk 0:00:44.1]} 27... Rc8 {[%clk 0:00:26.9]}
28. Nd4 {[%clk 0:00:27.4]} 28... Ng6 {[%clk 0:00:26.4]} 29. Re4 {[%clk
0:00:19.4]} 29... Kf7 {[%clk 0:00:22.7]} 30. Nf5 {[%clk 0:00:19.2]} 30... Kf6
{[%clk 0:00:18.6]} 31. g4 {[%clk 0:00:18.7]} 31... h5 {[%clk 0:00:18.1]} 32. Ne3
{[%clk 0:00:18.7]} 32... hxg4 {[%clk 0:00:17.6]} 33. Nxg4+ {[%clk 0:00:18.2]}
33... Kf5 {[%clk 0:00:17.4]} 34. f3 {[%clk 0:00:18.5]} 34... Ne5 {[%clk
0:00:16.9]} 35. Ne3+ {[%clk 0:00:18.6]} 35... Kf6 {[%clk 0:00:15.9]} 36. Ke2
{[%clk 0:00:18.7]} 36... g5 {[%clk 0:00:15.5]} 37. Nd5+ {[%clk 0:00:17.7]} 37...
Kf7 {[%clk 0:00:15.2]} 38. b3 {[%clk 0:00:17.7]} 38... axb3 {[%clk 0:00:14.6]}
39. axb3 {[%clk 0:00:18.6]} 39... c6 {[%clk 0:00:14.6]} 40. Nb6 {[%clk
0:00:17.8]} 40... Rh8 {[%clk 0:00:14.5]} 41. f4 {[%clk 0:00:15.3]} 41... gxf4
{[%clk 0:00:13.5]} 42. Rxf4+ {[%clk 0:00:15]} 42... Ke6 {[%clk 0:00:13.9]} 43.
Na4 {[%clk 0:00:15.1]} 43... Rh3 {[%clk 0:00:12.6]} 44. c5 {[%clk 0:00:09.9]}
44... Rxb3 {[%clk 0:00:08.1]} 45. cxd6 {[%clk 0:00:10.1]} 45... Kxd6 {[%clk
0:00:08.5]} 46. Rf6+ {[%clk 0:00:10.4]} 46... Kd5 {[%clk 0:00:08.8]} 47. Rf4
{[%clk 0:00:07.4]} 47... Ra3 {[%clk 0:00:05.8]} 48. Rh4 {[%clk 0:00:03]} 48...
Nd7 {[%clk 0:00:04.4]} 49. Kd2 {[%clk 0:00:02.3]} 49... b5 {[%clk 0:00:04.3]}
50. Nc3+ {[%clk 0:00:01.6]} 50... Kd6 {[%clk 0:00:03.9]} 51. Rh5 {[%clk
0:00:02.5]} 51... Kc7 {[%clk 0:00:04]} 52. Ne4 {[%clk 0:00:03.4]} 52... Ra2+
{[%clk 0:00:03.3]} 53. Kd3 {[%clk 0:00:03.3]} 53... Ra3+ {[%clk 0:00:03.6]} 54.
Kd4 {[%clk 0:00:03.7]} 54... Ra4+ {[%clk 0:00:04.1]} 55. Kd3 {[%clk 0:00:03.9]}
55... Kb6 {[%clk 0:00:04.5]} 56. Rh7 {[%clk 0:00:03.9]} 56... Nc5+ {[%clk
0:00:04.8]} 57. Nxc5 {[%clk 0:00:03.3]} 57... Kxc5 {[%clk 0:00:05.5]} 58. Rh5+
{[%clk 0:00:04.2]} 58... Kb6 {[%clk 0:00:05]} 59. Rh6 {[%clk 0:00:04.3]} 59...
Rg4 {[%clk 0:00:05.2]} 60. Kc3 {[%clk 0:00:04.6]} 60... b4+ {[%clk 0:00:05.6]}
61. Kb3 {[%clk 0:00:04.7]} 61... Kb5 {[%clk 0:00:06.2]} 62. Rh8 {[%clk
0:00:05.2]} 62... Rg3+ {[%clk 0:00:06.1]} 63. Kb2 {[%clk 0:00:06.1]} 63... c5
{[%clk 0:00:06.6]} 64. Rh4 {[%clk 0:00:06]} 64... c4 {[%clk 0:00:06.6]} 65. Rh5+
{[%clk 0:00:06.5]} 65... Ka4 {[%clk 0:00:07]} 66. Rh4 {[%clk 0:00:07.4]} 66...
Rg2+ {[%clk 0:00:07.3]} 67. Kc1 {[%clk 0:00:08.3]} 67... Kb3 {[%clk 0:00:07.7]}
68. Kd1 {[%clk 0:00:08.9]} 68... c3 {[%clk 0:00:08]} 69. Ke1 {[%clk 0:00:09.8]}
69... Rg1+ {[%clk 0:00:08.3]} 70. Kf2 {[%clk 0:00:09.6]} 70... Rd1 {[%clk
0:00:08.5]} 71. Ke2 {[%clk 0:00:09.1]} 71... c2 {[%clk 0:00:08.4]} 72. Rd4
{[%clk 0:00:08.9]} 72... Rxd4 {[%clk 0:00:08.1]} 0-1

[Event "*** Titled Tuesday Blitz"]
[Site "Chess.com"]
[Date "2021.03.09"]
[Round "9"]
[White "goldihouse"]
[Black "German_Bazeev"]
[Result "1-0"]
[WhiteElo "2602"]
[BlackElo "2752"]
[TimeControl "180+1"]
[EndTime "11:49:31 PST"]
[Termination "goldihouse won on time"]

1. c4 {[%clk 0:03:00.9]} 1... e5 {[%clk 0:03:00.1]} 2. g3 {[%clk 0:03:01.6]}
2... Nc6 {[%clk 0:03:00.4]} 3. Bg2 {[%clk 0:03:02.5]} 3... Nf6 {[%clk
0:03:00.7]} 4. Nc3 {[%clk 0:03:02.4]} 4... Bb4 {[%clk 0:03:00.5]} 5. Nd5 {[%clk
0:03:02.6]} 5... Bc5 {[%clk 0:02:59.8]} 6. e3 {[%clk 0:03:00.4]} 6... O-O {[%clk
0:02:59.9]} 7. Ne2 {[%clk 0:03:00.4]} 7... d6 {[%clk 0:03:00.5]} 8. Nec3 {[%clk
0:03:00.7]} 8... Nd7 {[%clk 0:02:36.3]} 9. O-O {[%clk 0:02:57.5]} 9... a6 {[%clk
0:02:36]} 10. b3 {[%clk 0:02:50.3]} 10... Re8 {[%clk 0:02:34.4]} 11. Bb2 {[%clk
0:02:47.5]} 11... Nf8 {[%clk 0:02:33.4]} 12. Qh5 {[%clk 0:02:37.7]} 12... Ne7
{[%clk 0:02:21.3]} 13. Nxe7+ {[%clk 0:02:25.9]} 13... Qxe7 {[%clk 0:02:19.9]}
14. Nd5 {[%clk 0:02:21.2]} 14... Qd8 {[%clk 0:02:17.1]} 15. d4 {[%clk
0:02:11.5]} 15... exd4 {[%clk 0:02:14.1]} 16. exd4 {[%clk 0:02:12.4]} 16... Ba7
{[%clk 0:02:12.4]} 17. Rad1 {[%clk 0:02:01.1]} 17... c6 {[%clk 0:02:10.6]} 18.
Ne3 {[%clk 0:01:59.3]} 18... Ng6 {[%clk 0:02:05.1]} 19. Rfe1 {[%clk 0:01:53.5]}
19... Bd7 {[%clk 0:01:52.1]} 20. h4 {[%clk 0:01:28.2]} 20... h6 {[%clk
0:01:38.4]} 21. Bc3 {[%clk 0:01:14.8]} 21... Nf8 {[%clk 0:01:13.3]} 22. Nf5
{[%clk 0:00:52.7]} 22... Qf6 {[%clk 0:01:05.6]} 23. Ne3 {[%clk 0:00:46.5]} 23...
Qg6 {[%clk 0:01:00.8]} 24. Qxg6 {[%clk 0:00:45.4]} 24... Nxg6 {[%clk 0:00:52.4]}
25. Bb4 {[%clk 0:00:35.3]} 25... Bb8 {[%clk 0:00:48]} 26. Nc2 {[%clk 0:00:21.8]}
26... Bc7 {[%clk 0:00:46.6]} 27. Rxe8+ {[%clk 0:00:20.8]} 27... Rxe8 {[%clk
0:00:47.5]} 28. Re1 {[%clk 0:00:21.5]} 28... Rxe1+ {[%clk 0:00:43.1]} 29. Bxe1
{[%clk 0:00:22.4]} 29... Ne7 {[%clk 0:00:39.3]} 30. Be4 {[%clk 0:00:21.2]} 30...
d5 {[%clk 0:00:36.5]} 31. cxd5 {[%clk 0:00:21]} 31... Nxd5 {[%clk 0:00:37.4]}
32. Bxd5 {[%clk 0:00:19.8]} 32... cxd5 {[%clk 0:00:38.3]} 33. Ne3 {[%clk
0:00:20.4]} 33... Be6 {[%clk 0:00:38.1]} 34. Bb4 {[%clk 0:00:20.1]} 34... h5
{[%clk 0:00:37.1]} 35. Kf1 {[%clk 0:00:19.4]} 35... f6 {[%clk 0:00:34.1]} 36.
Ke2 {[%clk 0:00:19.5]} 36... g5 {[%clk 0:00:33.7]} 37. Be7 {[%clk 0:00:18.6]}
37... Kf7 {[%clk 0:00:33]} 38. Bb4 {[%clk 0:00:16.8]} 38... Kg6 {[%clk
0:00:32.8]} 39. Bd2 {[%clk 0:00:15.5]} 39... Bd6 {[%clk 0:00:25.7]} 40. Kf3
{[%clk 0:00:15.4]} 40... Bd7 {[%clk 0:00:21.5]} 41. Ke2 {[%clk 0:00:13.2]} 41...
Bb5+ {[%clk 0:00:20.9]} 42. Kf3 {[%clk 0:00:13]} 42... Bc7 {[%clk 0:00:16]} 43.
a4 {[%clk 0:00:12.8]} 43... Bd7 {[%clk 0:00:12.3]} 44. Bb4 {[%clk 0:00:12.6]}
44... a5 {[%clk 0:00:11]} 45. Bc5 {[%clk 0:00:12.4]} 45... b5 {[%clk 0:00:10.8]}
46. axb5 {[%clk 0:00:11.9]} 46... Bxb5 {[%clk 0:00:11.7]} 47. Kg2 {[%clk
0:00:09.4]} 47... Kf7 {[%clk 0:00:10.6]} 48. Kg1 {[%clk 0:00:08]} 48... Ke6
{[%clk 0:00:10.8]} 49. Kg2 {[%clk 0:00:08.1]} 49... Be2 {[%clk 0:00:08.7]} 50.
f3 {[%clk 0:00:03.6]} 50... gxh4 {[%clk 0:00:08.2]} 51. gxh4 {[%clk 0:00:04]}
51... Bd3 {[%clk 0:00:08.7]} 52. Kf2 {[%clk 0:00:04.2]} 52... f5 {[%clk
0:00:08.1]} 53. Ng2 {[%clk 0:00:04.1]} 53... f4 {[%clk 0:00:08.1]} 54. Ne1
{[%clk 0:00:04.3]} 54... Bf5 {[%clk 0:00:07.1]} 55. Ke2 {[%clk 0:00:04.6]} 55...
Bh3 {[%clk 0:00:05.3]} 56. Nd3 {[%clk 0:00:04.5]} 56... Kf5 {[%clk 0:00:05.7]}
57. Be7 {[%clk 0:00:04.3]} 57... Bb6 {[%clk 0:00:02.3]} 58. Nc5 {[%clk
0:00:04.1]} 58... Bc7 {[%clk 0:00:02.6]} 59. Bg5 {[%clk 0:00:03.6]} 59... Bg2
{[%clk 0:00:02.6]} 60. Nd7 {[%clk 0:00:02.2]} 60... Bd6 {[%clk 0:00:02.7]} 61.
Nc5 {[%clk 0:00:01.9]} 61... Bc7 {[%clk 0:00:02.9]} 62. Nd7 {[%clk 0:00:01.3]}
62... Ke6 {[%clk 0:00:03.8]} 63. Nc5+ {[%clk 0:00:01.5]} 63... Kd6 {[%clk
0:00:04.7]} 64. Nd3 {[%clk 0:00:02.2]} 64... Kc6 {[%clk 0:00:04.9]} 65. Bxf4
{[%clk 0:00:03.1]} 65... Bb6 {[%clk 0:00:05.7]} 66. Ne5+ {[%clk 0:00:03.3]}
66... Kb5 {[%clk 0:00:06.2]} 67. Be3 {[%clk 0:00:04.2]} 67... Bh3 {[%clk
0:00:06.6]} 68. Nd3 {[%clk 0:00:04.8]} 68... Bf5 {[%clk 0:00:06.2]} 69. Kd2
{[%clk 0:00:05.2]} 69... Bc7 {[%clk 0:00:06.3]} 70. Kc3 {[%clk 0:00:05.3]} 70...
Bd8 {[%clk 0:00:07]} 71. Bg5 {[%clk 0:00:05.3]} 71... Be7 {[%clk 0:00:07.7]} 72.
Bxe7 {[%clk 0:00:04.8]} 1-0

[Event "*** Titled Tuesday Blitz"]
[Site "Chess.com"]
[Date "2021.03.09"]
[Round "9"]
[White "pfalcon1949"]
[Black "UmarovSabir"]
[Result "0-1"]
[WhiteElo "2065"]
[BlackElo "2292"]
[TimeControl "180+1"]
[EndTime "11:49:36 PST"]
[Termination "UmarovSabir won by checkmate"]

1. c4 {[%clk 0:02:59.1]} 1... g6 {[%clk 0:02:58.2]} 2. Nc3 {[%clk 0:02:59.4]}
2... Bg7 {[%clk 0:02:57.9]} 3. g3 {[%clk 0:02:58.9]} 3... e5 {[%clk 0:02:57.2]}
4. Bg2 {[%clk 0:02:59.4]} 4... Ne7 {[%clk 0:02:57.4]} 5. e4 {[%clk 0:03:00]}
5... d6 {[%clk 0:02:57.3]} 6. Nge2 {[%clk 0:03:00.6]} 6... Be6 {[%clk
0:02:57.1]} 7. d3 {[%clk 0:02:59.1]} 7... Qd7 {[%clk 0:02:52.6]} 8. h3 {[%clk
0:02:58.7]} 8... c5 {[%clk 0:02:33.4]} 9. Be3 {[%clk 0:02:55.7]} 9... Nbc6
{[%clk 0:02:33.2]} 10. Nd5 {[%clk 0:02:55.1]} 10... O-O {[%clk 0:02:30.6]} 11.
Qd2 {[%clk 0:02:55]} 11... f5 {[%clk 0:02:26.5]} 12. Bg5 {[%clk 0:02:46.9]}
12... fxe4 {[%clk 0:02:16]} 13. dxe4 {[%clk 0:02:41.6]} 13... Nc8 {[%clk
0:01:43.6]} 14. Bh6 {[%clk 0:02:17.2]} 14... Nb6 {[%clk 0:01:28.8]} 15. b3
{[%clk 0:02:12.7]} 15... Rf7 {[%clk 0:01:21.8]} 16. Bxg7 {[%clk 0:02:00.6]}
16... Kxg7 {[%clk 0:01:20.9]} 17. f4 {[%clk 0:01:44.2]} 17... Nd4 {[%clk
0:01:11.3]} 18. Nxd4 {[%clk 0:01:42.9]} 18... cxd4 {[%clk 0:01:10.2]} 19. f5
{[%clk 0:01:35.2]} 19... gxf5 {[%clk 0:01:09]} 20. Qg5+ {[%clk 0:01:34.3]} 20...
Kh8 {[%clk 0:01:06.9]} 21. O-O {[%clk 0:01:25.5]} 21... Rg8 {[%clk 0:01:03.8]}
22. Qh4 {[%clk 0:01:22.8]} 22... Bxd5 {[%clk 0:00:44.7]} 23. cxd5 {[%clk
0:01:17.5]} 23... Rfg7 {[%clk 0:00:44.1]} 24. Qf6 {[%clk 0:01:01.6]} 24... f4
{[%clk 0:00:14.3]} 25. g4 {[%clk 0:00:53.6]} 25... Qe7 {[%clk 0:00:12.9]} 26.
Qf5 {[%clk 0:00:45.2]} 26... Rg5 {[%clk 0:00:12.2]} 27. Qe6 {[%clk 0:00:39]}
27... Qxe6 {[%clk 0:00:10.3]} 28. dxe6 {[%clk 0:00:39.9]} 28... h5 {[%clk
0:00:09.2]} 29. Bf3 {[%clk 0:00:36.9]} 29... R5g6 {[%clk 0:00:05.3]} 30. Rac1
{[%clk 0:00:36.5]} 30... Rxe6 {[%clk 0:00:05.3]} 31. Rc7 {[%clk 0:00:37]} 31...
h4 {[%clk 0:00:02.4]} 32. Rfc1 {[%clk 0:00:35.8]} 32... Reg6 {[%clk 0:00:02.2]}
33. Rxb7 {[%clk 0:00:34.5]} 33... R8g7 {[%clk 0:00:02.6]} 34. Rb8+ {[%clk
0:00:31.2]} 34... Kh7 {[%clk 0:00:02.6]} 35. Rc6 {[%clk 0:00:30]} 35... Rf6
{[%clk 0:00:01.7]} 36. Kf2 {[%clk 0:00:28.9]} 36... Rgf7 {[%clk 0:00:01.3]} 37.
Ke2 {[%clk 0:00:29.1]} 37... Kg6 {[%clk 0:00:01.6]} 38. Kd3 {[%clk 0:00:29.2]}
38... Re7 {[%clk 0:00:01.7]} 39. Rg8+ {[%clk 0:00:28.9]} 39... Rg7 {[%clk
0:00:01.8]} 40. Rxg7+ {[%clk 0:00:28.8]} 40... Kxg7 {[%clk 0:00:02.7]} 41. Rc7+
{[%clk 0:00:29.2]} 41... Rf7 {[%clk 0:00:03.3]} 42. Rc6 {[%clk 0:00:29.5]} 42...
Rd7 {[%clk 0:00:03.2]} 43. g5 {[%clk 0:00:27.7]} 43... Kg6 {[%clk 0:00:03.2]}
44. Bg4 {[%clk 0:00:28]} 44... Rd8 {[%clk 0:00:03.7]} 45. Bf5+ {[%clk
0:00:26.7]} 45... Kxg5 {[%clk 0:00:03.8]} 46. Rc7 {[%clk 0:00:25.5]} 46... f3
{[%clk 0:00:03.7]} 47. Rg7+ {[%clk 0:00:25.4]} 47... Kf6 {[%clk 0:00:03.6]} 48.
Rg6+ {[%clk 0:00:25]} 48... Kf7 {[%clk 0:00:03.6]} 49. Rg1 {[%clk 0:00:24.3]}
49... Rc8 {[%clk 0:00:03.7]} 50. Rf1 {[%clk 0:00:23.7]} 50... Rc3+ {[%clk
0:00:03.5]} 51. Kd2 {[%clk 0:00:24.2]} 51... Kf6 {[%clk 0:00:01.7]} 52. Rg1
{[%clk 0:00:23.2]} 52... a5 {[%clk 0:00:01.8]} 53. Rg6+ {[%clk 0:00:22.8]} 53...
Ke7 {[%clk 0:00:02.7]} 54. Re6+ {[%clk 0:00:21.7]} 54... Kf7 {[%clk 0:00:02]}
55. Rg6 {[%clk 0:00:20.6]} 55... Ke7 {[%clk 0:00:01.7]} 56. Rg1 {[%clk
0:00:19.9]} 56... Kd8 {[%clk 0:00:01.8]} 57. Bg4 {[%clk 0:00:20.8]} 57... Kc7
{[%clk 0:00:02.3]} 58. Rf1 {[%clk 0:00:21.4]} 58... Kc6 {[%clk 0:00:02.5]} 59.
Bxf3 {[%clk 0:00:21.9]} 59... Kc5 {[%clk 0:00:02.5]} 60. Be2 {[%clk 0:00:22.2]}
60... Kb4 {[%clk 0:00:02.7]} 61. Bd3 {[%clk 0:00:22.6]} 61... Ka3 {[%clk
0:00:02.7]} 62. Rf6 {[%clk 0:00:19.7]} 62... Kxa2 {[%clk 0:00:02.8]} 63. Rxd6
{[%clk 0:00:20.4]} 63... Rxb3 {[%clk 0:00:03.7]} 64. Re6 {[%clk 0:00:19.8]}
64... a4 {[%clk 0:00:04]} 65. Rxe5 {[%clk 0:00:20.7]} 65... a3 {[%clk
0:00:04.4]} 66. Ra5 {[%clk 0:00:21.2]} 66... Rb2+ {[%clk 0:00:04.3]} 67. Kd1
{[%clk 0:00:20.1]} 67... Nd7 {[%clk 0:00:04.6]} 68. Ra6 {[%clk 0:00:20.2]} 68...
Ne5 {[%clk 0:00:04.2]} 69. Ra8 {[%clk 0:00:21]} 69... Nxd3 {[%clk 0:00:04.2]}
70. Rd8 {[%clk 0:00:18.3]} 70... Rb4 {[%clk 0:00:03.9]} 71. Rxd4 {[%clk
0:00:19.2]} 71... Rxd4 {[%clk 0:00:03.4]} 72. Kd2 {[%clk 0:00:20.1]} 72... Ne5+
{[%clk 0:00:03.7]} 73. Ke3 {[%clk 0:00:20.1]} 73... Rb4 {[%clk 0:00:04.2]} 74.
Kf4 {[%clk 0:00:20.2]} 74... Nd3+ {[%clk 0:00:04.5]} 75. Kf5 {[%clk 0:00:19.6]}
75... Kb2 {[%clk 0:00:04]} 76. e5 {[%clk 0:00:20.5]} 76... Nxe5 {[%clk
0:00:03.6]} 77. Kxe5 {[%clk 0:00:20.3]} 77... a2 {[%clk 0:00:04.5]} 78. Kf5
{[%clk 0:00:21.2]} 78... a1=Q {[%clk 0:00:04.8]} 79. Kg5 {[%clk 0:00:21.9]}
79... Qa5+ {[%clk 0:00:05.3]} 80. Kf6 {[%clk 0:00:21.1]} 80... Rb6+ {[%clk
0:00:06.2]} 81. Ke7 {[%clk 0:00:21.5]} 81... Qa7+ {[%clk 0:00:07.1]} 82. Kd8
{[%clk 0:00:21.6]} 82... Rb8# {[%clk 0:00:08]} 0-1